[Event "Queens Festival Europe 2022"]
[Site "Tornelo"]
[Date "2022.06.19"]
[Round "2.1"]
[White "Mammadova, Aysel"]
[Black "Cassi, Elisa"]
[Result "1-0"]
[ECO "B13"]
[WhiteElo "1893"]
[BlackElo "1999"]
[Annotator "NA RC"]
[PlyCount "83"]
[EventDate "2022.06.19"]
[EventType "swiss"]
[EventCountry "NET"]
[SourceTitle "playchess.com"]
[Source "ChessBase"]
[SourceQuality "1"]
[TimeControl "180+2"]

1. e4 {[%emt 0:00:02]} c6 {[%emt 0:00:05]} 2. d4 {[%emt 0:00:03]} d5 {[%emt 0:00:01]} 3. exd5 {[%emt 0:00:03]} cxd5 {[%emt 0:00:02]} 4. Bd3 {[%emt 0:00:02]} Nc6 {[%emt 0:00:02]} 5. Nf3 {[%emt 0:00:02]} Nf6 {[%emt 0:00:02]} 6. O-O {[%emt 0:00:03]} Bg4 {[%emt 0:00:05]} 7. Be3 {[%emt 0:00:03]} e6 {[%emt 0:00:03]} 8. Nbd2 {[%emt 0:00:03]} Bd6 {[%emt 0:00:05]} 9. c4 {[%emt 0:00:03]} dxc4 {[%emt 0:00:08]} 10. Nxc4 {[%emt 0:00:03]} Bc7 {[%emt 0:00:05]} 11. Be2 {[%emt 0:00:05]} Ne7 {[%emt 0:00:08]} 12. Qa4+ {[%emt 0:00:08]} Qd7 {[%emt 0:00:04]} 13. Qxd7+ {[%emt 0:00:03]} Kxd7 {[%emt 0:00:02]} 14. Nfe5+ {[%emt 0:00:06]} Ke8 {[%emt 0:00:34]} 15. Nxg4 {[%emt 0:00:04]} Nfd5 {[%emt 0:00:04]} 16. Nge5 {[%emt 0:00:05]} f6 {[%emt 0:00:08]} 17. Nd3 {[%emt 0:00:04]} Kf7 {[%emt 0:00:12]} 18. Rac1 {[%emt 0:00:04]} Rhd8 {[%emt 0:00:18]} 19. Bf3 {[%emt 0:00:03]} Rac8 {[%emt 0:00:01]} 20. Bxd5 {[%emt 0:00:05]} Nxd5 {[%emt 0:00:02]} 21. Nd2 {[%emt 0:00:05]} Ba5 {[%emt 0:00:08]} 22. Nb3 {[%emt 0:00:07]} Bb6 {[%emt 0:00:08]} 23. Rxc8 {[%emt 0:00:04]} Rxc8 {[%emt 0:00:01]} 24. Rc1 {[%emt 0:00:03]} Rd8 {[%emt 0:00:01]} 25. Kf1 {[%emt 0:00:04]} g5 {[%emt 0:00:09]} 26. Ke2 {[%emt 0:00:02]} Kg6 {[%emt 0:00:07]} 27. f4 {[%emt 0:00:10]} Nxe3 {[%emt 0:00:06]} 28. Kxe3 {[%emt 0:00:03]} gxf4+ {[%emt 0:00:03]} 29. Nxf4+ {[%emt 0:00:04]} Kf5 {[%emt 0:00:01]} 30. Ne2 {[%emt 0:00:04]} e5 {[%emt 0:00:01]} 31. Kd3 {[%emt 0:00:09]} Rg8 {[%emt 0:00:18]} 32. Rf1+ {[%emt 0:00:04]} Ke6 {[%emt 0:00:01]} 33. g3 {[%emt 0:00:06]} h5 {[%emt 0:00:06]} 34. h3 {[%emt 0:00:06]} f5 {[%emt 0:00:07]} 35. dxe5 {[%emt 0:00:04]} Kxe5 {[%emt 0:00:01]} 36. Rf3 {[%emt 0:00:18]} Rd8+ {[%emt 0:00:03]} 37. Kc2 {[%emt 0:00:03]} Rc8+ {[%emt 0:00:02]} 38. Nc3 {[%emt 0:00:03]} h4 {[%emt 0:00:05]} 39. gxh4 {[%emt 0:00:04]} Rh8 {[%emt 0:00:02]} 40. Nd2 {[%emt 0:00:02]} Rxh4 {[%emt 0:00:02]} 41. b3 {[%emt 0:00:03]} Ba5 {[%emt 0:00:16]} 42. Nc4+ {[%emt 0:00:02]} 1-0

[Event "Queens Festival Europe 2022"]
[Site "Tornelo"]
[Date "2022.06.19"]
[Round "2.1"]
[White "Stadlinger, Lea"]
[Black "Khalilova, Khadija"]
[Result "0-1"]
[ECO "B80"]
[WhiteElo "1723"]
[BlackElo "1777"]
[Annotator "NA RC"]
[PlyCount "94"]
[EventDate "2022.06.19"]
[EventType "swiss"]
[EventCountry "NET"]
[SourceTitle "playchess.com"]
[Source "ChessBase"]
[SourceQuality "1"]
[TimeControl "180+2"]

1. e4 {[%emt 0:00:02]} c5 {[%emt 0:00:05]} 2. Nf3 {[%emt 0:00:02]} d6 {[%emt 0:00:03]} 3. d4 {[%emt 0:00:02]} cxd4 {[%emt 0:00:02]} 4. Nxd4 {[%emt 0:00:02]} Nf6 {[%emt 0:00:02]} 5. Nc3 {[%emt 0:00:03]} a6 {[%emt 0:00:03]} 6. Be3 {[%emt 0:00:05]} e6 {[%emt 0:00:02]} 7. f3 {[%emt 0:00:03]} Be7 {[%emt 0:00:01]} 8. Be2 {[%emt 0:00:11]} Qc7 {[%emt 0:00:03]} 9. Qd2 {[%emt 0:00:11]} b5 {[%emt 0:00:08]} 10. a3 {[%emt 0:00:04]} Bb7 {[%emt 0:00:03]} 11. g4 {[%emt 0:00:04]} Nc6 {[%emt 0:00:07]} 12. h4 {[%emt 0:00:05]} Ne5 {[%emt 0:00:03]} 13. h5 {[%emt 0:00:33]} h6 {[%emt 0:00:14]} 14. Kf2 {[%emt 0:00:22]} d5 {[%emt 0:00:36]} 15. exd5 {[%emt 0:00:10]} Bxd5 {[%emt 0:00:11]} 16. Nxd5 {[%emt 0:00:02]} Nxd5 {[%emt 0:00:02]} 17. f4 {[%emt 0:00:28]} Nc4 {[%emt 0:00:13]} 18. Bxc4 {[%emt 0:00:07]} Qxc4 {[%emt 0:00:09]} 19. c3 {[%emt 0:00:09]} Rd8 {[%emt 0:00:07]} 20. Qe2 {[%emt 0:00:08]} Qc7 {[%emt 0:00:05]} 21. Qf3 {[%emt 0:00:15]} Bd6 {[%emt 0:00:19]} 22. Ne2 {[%emt 0:00:13]} Nxe3 {[%emt 0:00:03]} 23. Qxe3 {[%emt 0:00:06]} Bc5 {[%emt 0:00:04]} 24. Nd4 {[%emt 0:00:01]} Rd5 {[%emt 0:00:13]} 25. Kg2 {[%emt 0:00:13]} O-O {[%emt 0:00:21]} 26. Rad1 {[%emt 0:00:02]} Rfd8 {[%emt 0:00:03]} 27. Qe4 {[%emt 0:00:04]} Bxd4 {[%emt 0:00:06]} 28. cxd4 {[%emt 0:00:02]} Qc4 {[%emt 0:00:02]} 29. Qd3 {[%emt 0:00:05]} Rxd4 {[%emt 0:00:03]} 30. Qxc4 {[%emt 0:00:01]} bxc4 {[%emt 0:00:02]} 31. Rc1 {[%emt 0:00:03]} Rxf4 {[%emt 0:00:02]} 32. Kg3 {[%emt 0:00:01]} Rdd4 {[%emt 0:00:02]} 33. Rc3 {[%emt 0:00:03]} Rxg4+ {[%emt 0:00:02]} 34. Kf3 {[%emt 0:00:04]} f5 {[%emt 0:00:03]} 35. Rhc1 {[%emt 0:00:02]} Rgf4+ {[%emt 0:00:03]} 36. Kg3 {[%emt 0:00:02]} Kf7 {[%emt 0:00:01]} 37. Re3 {[%emt 0:00:02]} Kf6 {[%emt 0:00:02]} 38. Rf3 {[%emt 0:00:03]} Rxf3+ {[%emt 0:00:02]} 39. Kxf3 {[%emt 0:00:02]} e5 {[%emt 0:00:01]} 40. Ke3 {[%emt 0:00:02]} Ke6 {[%emt 0:00:02]} 41. Kf3 {[%emt 0:00:01]} Rd3+ {[%emt 0:00:02]} 42. Ke2 {[%emt 0:00:03]} Kd5 {[%emt 0:00:01]} 43. Rg1 {[%emt 0:00:02]} f4 {[%emt 0:00:02]} 44. Rxg7 {[%emt 0:00:02]} Ke4 {[%emt 0:00:03]} 45. Rg6 {[%emt 0:00:02]} f3+ {[%emt 0:00:02]} 46. Kf1 {[%emt 0:00:01]} Ke3 {[%emt 0:00:02]} 47. Rxh6 {[%emt 0:00:02]} Rd1# {[%emt 0:00:02]} 0-1

[Event "Queens Festival Europe 2022"]
[Site "Tornelo"]
[Date "2022.06.19"]
[Round "2.1"]
[White "Ismayilova, Khanim"]
[Black "Ahmadova, Minaya"]
[Result "1-0"]
[ECO "D94"]
[WhiteElo "1647"]
[BlackElo "1285"]
[Annotator "NA RC"]
[PlyCount "107"]
[EventDate "2022.06.19"]
[EventType "swiss"]
[EventCountry "NET"]
[SourceTitle "playchess.com"]
[Source "ChessBase"]
[SourceQuality "1"]
[TimeControl "180+2"]

1. c4 {[%emt 0:00:02]} c5 {[%emt 0:00:07]} 2. Nc3 {[%emt 0:00:02]} Nc6 {[%emt 0:00:11]} 3. Nf3 {[%emt 0:00:01]} g6 {[%emt 0:00:02]} 4. e3 {[%emt 0:00:02]} Bg7 {[%emt 0:00:02]} 5. d4 {[%emt 0:00:01]} cxd4 {[%emt 0:00:04]} 6. exd4 {[%emt 0:00:03]} Nf6 {[%emt 0:00:03]} 7. Be2 {[%emt 0:00:03]} O-O {[%emt 0:00:02]} 8. O-O {[%emt 0:00:01]} d5 {[%emt 0:00:10]} 9. b3 {[%emt 0:00:21]} Bg4 {[%emt 0:00:02]} 10. Bb2 {[%emt 0:00:03]} e6 {[%emt 0:00:02]} 11. Ne5 {[%emt 0:00:36]} Bxe2 {[%emt 0:00:04]} 12. Nxe2 {[%emt 0:00:00]} dxc4 {[%emt 0:00:10]} 13. bxc4 {[%emt 0:00:06]} Nxe5 {[%emt 0:00:08]} 14. dxe5 {[%emt 0:00:02]} Nd7 {[%emt 0:00:01]} 15. Qd6 {[%emt 0:00:11]} Nb6 {[%emt 0:00:12]} 16. Qxd8 {[%emt 0:00:26]} Raxd8 {[%emt 0:00:02]} 17. Rac1 {[%emt 0:00:13]} Rd2 {[%emt 0:00:11]} 18. Ba3 {[%emt 0:00:11]} Rc8 {[%emt 0:00:09]} 19. Ng3 {[%emt 0:00:13]} Bxe5 {[%emt 0:00:13]} 20. Ne4 {[%emt 0:00:08]} Rdd8 {[%emt 0:00:06]} 21. c5 {[%emt 0:00:21]} Nd5 {[%emt 0:00:04]} 22. Rfd1 {[%emt 0:00:03]} Bg7 {[%emt 0:00:12]} 23. h3 {[%emt 0:00:01]} Bf8 {[%emt 0:00:03]} 24. Nd6 {[%emt 0:00:05]} Rc7 {[%emt 0:00:15]} 25. Nb5 {[%emt 0:00:03]} Rcc8 {[%emt 0:00:04]} 26. Nxa7 {[%emt 0:00:03]} Ra8 {[%emt 0:00:02]} 27. Nb5 {[%emt 0:00:01]} b6 {[%emt 0:00:07]} 28. Rd3 {[%emt 0:00:12]} Rdc8 {[%emt 0:00:10]} 29. Nd6 {[%emt 0:00:10]} Bxd6 {[%emt 0:00:04]} 30. cxd6 {[%emt 0:00:02]} Rd8 {[%emt 0:00:06]} 31. Rc6 {[%emt 0:00:06]} b5 {[%emt 0:00:07]} 32. Rb3 {[%emt 0:00:04]} Rab8 {[%emt 0:00:06]} 33. Bc5 {[%emt 0:00:02]} Rd7 {[%emt 0:00:10]} 34. Ra3 {[%emt 0:00:02]} b4 {[%emt 0:00:07]} 35. Ra7 {[%emt 0:00:01]} Rdd8 {[%emt 0:00:07]} 36. d7 {[%emt 0:00:04]} Nf6 {[%emt 0:00:05]} 37. Be7 {[%emt 0:00:01]} Rxd7 {[%emt 0:00:02]} 38. Rxd7 {[%emt 0:00:07]} Nxd7 {[%emt 0:00:01]} 39. Rd6 {[%emt 0:00:01]} Nb6 {[%emt 0:00:04]} 40. Rc6 {[%emt 0:00:04]} Nd5 {[%emt 0:00:03]} 41. Bd6 {[%emt 0:00:02]} Kg7 {[%emt 0:00:02]} 42. Bxb8 {[%emt 0:00:02]} Nc3 {[%emt 0:00:03]} 43. Be5+ {[%emt 0:00:01]} f6 {[%emt 0:00:04]} 44. Bxc3 {[%emt 0:00:00]} bxc3 {[%emt 0:00:02]} 45. Rxc3 {[%emt 0:00:00]} e5 {[%emt 0:00:01]} 46. a4 {[%emt 0:00:00]} f5 {[%emt 0:00:02]} 47. a5 {[%emt 0:00:01]} Kf6 {[%emt 0:00:01]} 48. a6 {[%emt 0:00:01]} Kf7 {[%emt 0:00:01]} 49. a7 {[%emt 0:00:01]} Kf8 {[%emt 0:00:02]} 50. a8=Q+ {[%emt 0:00:02]} Kg7 {[%emt 0:00:01]} 51. Rc7+ {[%emt 0:00:01]} Kh6 {[%emt 0:00:02]} 52. Qf8+ {[%emt 0:00:02]} Kh5 {[%emt 0:00:01]} 53. Rxh7+ {[%emt 0:00:02]} Kg5 {[%emt 0:00:01]} 54. h4+ {[%emt 0:00:01]} 1-0

[Event "Queens Festival Europe 2022"]
[Site "Tornelo"]
[Date "2022.06.19"]
[Round "2.2"]
[White "Richtrova, Eliska"]
[Black "Okuyaz, Duru"]
[Result "1-0"]
[ECO "B24"]
[WhiteElo "2204"]
[BlackElo "2090"]
[Annotator "NA RC"]
[PlyCount "101"]
[EventDate "2022.06.19"]
[EventType "swiss"]
[EventCountry "NET"]
[SourceTitle "playchess.com"]
[Source "ChessBase"]
[SourceQuality "1"]
[TimeControl "180+2"]

1. e4 {[%emt 0:00:02]} e6 {[%emt 0:00:04]} 2. d3 {[%emt 0:00:03]} c5 {[%emt 0:00:02]} 3. g3 {[%emt 0:00:06]} Nc6 {[%emt 0:00:02]} 4. Bg2 {[%emt 0:00:02]} g6 {[%emt 0:00:01]} 5. Nc3 {[%emt 0:00:02]} Bg7 {[%emt 0:00:01]} 6. Be3 {[%emt 0:00:03]} Nge7 {[%emt 0:00:01]} 7. Bxc5 {[%emt 0:00:05]} d6 {[%emt 0:00:04]} 8. Be3 {[%emt 0:00:03]} O-O {[%emt 0:00:01]} 9. Qd2 {[%emt 0:00:03]} d5 {[%emt 0:00:08]} 10. Bh6 {[%emt 0:00:06]} dxe4 {[%emt 0:00:09]} 11. Bxg7 {[%emt 0:00:04]} Kxg7 {[%emt 0:00:01]} 12. Nxe4 {[%emt 0:00:03]} Qb6 {[%emt 0:00:07]} 13. Qc3+ {[%emt 0:00:12]} e5 {[%emt 0:00:01]} 14. Nf3 {[%emt 0:00:07]} Nd5 {[%emt 0:00:02]} 15. Qb3 {[%emt 0:00:04]} Ndb4 {[%emt 0:00:13]} 16. O-O {[%emt 0:00:22]} Be6 {[%emt 0:00:02]} 17. c4 {[%emt 0:00:02]} Rad8 {[%emt 0:00:09]} 18. Rad1 {[%emt 0:00:05]} Nd4 {[%emt 0:00:33]} 19. Nxd4 {[%emt 0:00:06]} Rxd4 {[%emt 0:00:03]} 20. a3 {[%emt 0:00:10]} Nc6 {[%emt 0:00:06]} 21. Qxb6 {[%emt 0:00:07]} axb6 {[%emt 0:00:01]} 22. Ng5 {[%emt 0:00:02]} Bf5 {[%emt 0:00:05]} 23. Be4 {[%emt 0:00:12]} Rfd8 {[%emt 0:00:05]} 24. Bd5 {[%emt 0:00:04]} Bxd3 {[%emt 0:00:11]} 25. Rfe1 {[%emt 0:00:04]} Bxc4 {[%emt 0:00:02]} 26. Rxd4 {[%emt 0:00:07]} Nxd4 {[%emt 0:00:10]} 27. Bxc4 {[%emt 0:00:07]} h6 {[%emt 0:00:01]} 28. Rxe5 {[%emt 0:00:06]} hxg5 {[%emt 0:00:04]} 29. Re7 {[%emt 0:00:02]} Kf6 {[%emt 0:00:31]} 30. Rxf7+ {[%emt 0:00:08]} Ke5 {[%emt 0:00:01]} 31. Rxb7 {[%emt 0:00:04]} g4 {[%emt 0:00:08]} 32. Kg2 {[%emt 0:00:31]} Nf3 {[%emt 0:00:06]} 33. Be2 {[%emt 0:00:04]} Rd2 {[%emt 0:00:08]} 34. Bxf3 {[%emt 0:00:04]} gxf3+ {[%emt 0:00:01]} 35. Kxf3 {[%emt 0:00:02]} Rxb2 {[%emt 0:00:01]} 36. h4 {[%emt 0:00:04]} Rb3+ {[%emt 0:00:03]} 37. Kg4 {[%emt 0:00:02]} Kf6 {[%emt 0:00:05]} 38. a4 {[%emt 0:00:02]} Rb4+ {[%emt 0:00:01]} 39. f4 {[%emt 0:00:02]} Rxa4 {[%emt 0:00:04]} 40. Rxb6+ {[%emt 0:00:03]} Kg7 {[%emt 0:00:01]} 41. h5 {[%emt 0:00:05]} gxh5+ {[%emt 0:00:03]} 42. Kxh5 {[%emt 0:00:02]} Ra5+ {[%emt 0:00:01]} 43. Kg4 {[%emt 0:00:03]} Ra4 {[%emt 0:00:02]} 44. Rc6 {[%emt 0:00:03]} Rb4 {[%emt 0:00:08]} 45. Kg5 {[%emt 0:00:04]} Ra4 {[%emt 0:00:11]} 46. Rc7+ {[%emt 0:00:04]} Kf8 {[%emt 0:00:03]} 47. f5 {[%emt 0:00:03]} Ra3 {[%emt 0:00:03]} 48. g4 {[%emt 0:00:02]} Ra6 {[%emt 0:00:01]} 49. f6 {[%emt 0:00:03]} Ra4 {[%emt 0:00:03]} 50. Kf5 {[%emt 0:00:02]} Ra5+ {[%emt 0:00:02]} 51. Kg6 {[%emt 0:00:03]} 1-0

[Event "Queens Festival Europe 2022"]
[Site "Tornelo"]
[Date "2022.06.19"]
[Round "2.2"]
[White "Arora, Tashika"]
[Black "Grigoryan, Meri"]
[Result "0-1"]
[ECO "D17"]
[WhiteElo "1822"]
[BlackElo "1993"]
[Annotator "NA RC"]
[PlyCount "70"]
[EventDate "2022.06.19"]
[EventType "swiss"]
[EventCountry "NET"]
[SourceTitle "playchess.com"]
[Source "ChessBase"]
[SourceQuality "1"]
[TimeControl "180+2"]

1. d4 {[%emt 0:00:02]} d5 {[%emt 0:00:04]} 2. Nf3 {[%emt 0:00:02]} Nf6 {[%emt 0:00:02]} 3. c4 {[%emt 0:00:02]} c6 {[%emt 0:00:03]} 4. Nc3 {[%emt 0:00:02]} dxc4 {[%emt 0:00:02]} 5. a4 {[%emt 0:00:02]} Bf5 {[%emt 0:00:09]} 6. Ne5 {[%emt 0:00:02]} e6 {[%emt 0:00:02]} 7. Nxc4 {[%emt 0:00:04]} Bb4 {[%emt 0:00:01]} 8. f3 {[%emt 0:00:17]} O-O {[%emt 0:00:20]} 9. e4 {[%emt 0:00:06]} Bxe4 {[%emt 0:00:10]} 10. fxe4 {[%emt 0:00:13]} Nxe4 {[%emt 0:00:01]} 11. Qd3 {[%emt 0:00:55]} f5 {[%emt 0:00:16]} 12. Be2 {[%emt 0:00:12]} c5 {[%emt 0:00:15]} 13. O-O {[%emt 0:00:12]} Qxd4+ {[%emt 0:00:08]} 14. Qxd4 {[%emt 0:00:04]} cxd4 {[%emt 0:00:01]} 15. Nb5 {[%emt 0:00:09]} Nc6 {[%emt 0:00:10]} 16. Nc7 {[%emt 0:00:07]} Rad8 {[%emt 0:00:50]} 17. Nxe6 {[%emt 0:00:03]} d3 {[%emt 0:00:01]} 18. Bd1 {[%emt 0:00:35]} d2 {[%emt 0:00:06]} 19. Nxf8 {[%emt 0:00:12]} dxc1=Q {[%emt 0:00:15]} 20. Rxc1 {[%emt 0:00:06]} Bc5+ {[%emt 0:00:12]} 21. Kh1 {[%emt 0:00:03]} Rxf8 {[%emt 0:00:09]} 22. g3 {[%emt 0:00:03]} Nd4 {[%emt 0:00:14]} 23. Nd6 {[%emt 0:00:09]} Bxd6 {[%emt 0:00:02]} 24. Bf3 {[%emt 0:00:05]} g6 {[%emt 0:00:04]} 25. Bxe4 {[%emt 0:00:03]} fxe4 {[%emt 0:00:01]} 26. Rxf8+ {[%emt 0:00:02]} Kxf8 {[%emt 0:00:01]} 27. Kg2 {[%emt 0:00:02]} Ke7 {[%emt 0:00:02]} 28. Re1 {[%emt 0:00:02]} Nf5 {[%emt 0:00:07]} 29. Rxe4+ {[%emt 0:00:02]} Kf6 {[%emt 0:00:01]} 30. Kf3 {[%emt 0:00:02]} Bc5 {[%emt 0:00:02]} 31. Rc4 {[%emt 0:00:01]} b6 {[%emt 0:00:02]} 32. b4 {[%emt 0:00:02]} Bd6 {[%emt 0:00:03]} 33. g4 {[%emt 0:00:02]} Ne7 {[%emt 0:00:01]} 34. h3 {[%emt 0:00:02]} Nd5 {[%emt 0:00:02]} 35. Rd4 {[%emt 0:00:02]} Ke5 {[%emt 0:00:03]} 0-1

[Event "Queens Festival Europe 2022"]
[Site "Tornelo"]
[Date "2022.06.19"]
[Round "2.2"]
[White "Omeri, Eklea"]
[Black "Vicze, Zsofia"]
[Result "1-0"]
[ECO "D37"]
[WhiteElo "1525"]
[BlackElo "1749"]
[Annotator "NA RC"]
[PlyCount "141"]
[EventDate "2022.06.19"]
[EventType "swiss"]
[EventCountry "NET"]
[SourceTitle "playchess.com"]
[Source "ChessBase"]
[SourceQuality "1"]
[TimeControl "180+2"]

1. d4 {[%emt 0:00:02]} d5 {[%emt 0:00:04]} 2. c4 {[%emt 0:00:02]} e6 {[%emt 0:00:02]} 3. Nc3 {[%emt 0:00:02]} Nf6 {[%emt 0:00:02]} 4. Nf3 {[%emt 0:00:02]} a6 {[%emt 0:00:02]} 5. cxd5 {[%emt 0:00:05]} exd5 {[%emt 0:00:03]} 6. Bg5 {[%emt 0:00:03]} Be6 {[%emt 0:00:06]} 7. e3 {[%emt 0:00:03]} Nbd7 {[%emt 0:00:03]} 8. Ne5 {[%emt 0:00:05]} h6 {[%emt 0:00:16]} 9. Bxf6 {[%emt 0:00:03]} Nxf6 {[%emt 0:00:02]} 10. Qb3 {[%emt 0:00:06]} Qc8 {[%emt 0:00:18]} 11. Bd3 {[%emt 0:00:09]} Bd6 {[%emt 0:00:03]} 12. Nf3 {[%emt 0:00:05]} O-O {[%emt 0:00:03]} 13. O-O {[%emt 0:00:03]} c6 {[%emt 0:00:08]} 14. Rac1 {[%emt 0:00:06]} Bg4 {[%emt 0:00:06]} 15. Be2 {[%emt 0:00:06]} Qd7 {[%emt 0:00:04]} 16. h3 {[%emt 0:00:03]} Bf5 {[%emt 0:00:09]} 17. Na4 {[%emt 0:00:14]} Rad8 {[%emt 0:00:14]} 18. Nc5 {[%emt 0:00:05]} Bxc5 {[%emt 0:00:04]} 19. Rxc5 {[%emt 0:00:02]} Rfe8 {[%emt 0:00:05]} 20. Ne5 {[%emt 0:00:04]} Qc7 {[%emt 0:00:08]} 21. Rfc1 {[%emt 0:00:05]} Ne4 {[%emt 0:00:04]} 22. Rxd5 {[%emt 0:00:29]} Rb8 {[%emt 0:00:29]} 23. Nxf7 {[%emt 0:00:36]} Qxf7 {[%emt 0:00:15]} 24. Rxf5 {[%emt 0:00:03]} Qxb3 {[%emt 0:00:02]} 25. axb3 {[%emt 0:00:02]} Nd2 {[%emt 0:00:06]} 26. Bc4+ {[%emt 0:00:09]} Kh7 {[%emt 0:00:06]} 27. Rc2 {[%emt 0:00:06]} Ne4 {[%emt 0:00:05]} 28. Bd3 {[%emt 0:00:04]} g6 {[%emt 0:00:10]} 29. Rf4 {[%emt 0:00:07]} Nd6 {[%emt 0:00:08]} 30. Rc5 {[%emt 0:00:05]} Re7 {[%emt 0:00:04]} 31. Rf6 {[%emt 0:00:03]} Ne4 {[%emt 0:00:11]} 32. Bxe4 {[%emt 0:00:03]} Rxe4 {[%emt 0:00:02]} 33. Kf1 {[%emt 0:00:07]} Re7 {[%emt 0:00:02]} 34. Ke2 {[%emt 0:00:03]} Rd8 {[%emt 0:00:02]} 35. Kd3 {[%emt 0:00:04]} Kg7 {[%emt 0:00:03]} 36. Rf3 {[%emt 0:00:03]} Rd6 {[%emt 0:00:04]} 37. g3 {[%emt 0:00:02]} Rd8 {[%emt 0:00:03]} 38. b4 {[%emt 0:00:03]} Rdd7 {[%emt 0:00:03]} 39. Kc4 {[%emt 0:00:02]} Rd6 {[%emt 0:00:04]} 40. g4 {[%emt 0:00:02]} Red7 {[%emt 0:00:09]} 41. Rg3 {[%emt 0:00:03]} Re7 {[%emt 0:00:01]} 42. Rg1 {[%emt 0:00:02]} Rde6 {[%emt 0:00:02]} 43. Rc1 {[%emt 0:00:04]} b6 {[%emt 0:00:02]} 44. Re5 {[%emt 0:00:05]} Rxe5 {[%emt 0:00:02]} 45. dxe5 {[%emt 0:00:02]} Rxe5 {[%emt 0:00:02]} 46. Kd4 {[%emt 0:00:03]} Re6 {[%emt 0:00:01]} 47. b3 {[%emt 0:00:05]} g5 {[%emt 0:00:01]} 48. f4 {[%emt 0:00:02]} Kf6 {[%emt 0:00:02]} 49. f5 {[%emt 0:00:03]} Rd6+ {[%emt 0:00:03]} 50. Kc3 {[%emt 0:00:02]} Ke5 {[%emt 0:00:02]} 51. Kc2 {[%emt 0:00:04]} b5 {[%emt 0:00:01]} 52. Rd1 {[%emt 0:00:02]} Rf6 {[%emt 0:00:04]} 53. Rd8 {[%emt 0:00:04]} Ke4 {[%emt 0:00:01]} 54. Kd2 {[%emt 0:00:07]} Kf3 {[%emt 0:00:02]} 55. Re8 {[%emt 0:00:02]} Kg3 {[%emt 0:00:01]} 56. Re6 {[%emt 0:00:02]} Rf8 {[%emt 0:00:03]} 57. Rxh6 {[%emt 0:00:02]} Rf7 {[%emt 0:00:02]} 58. e4 {[%emt 0:00:03]} Kf4 {[%emt 0:00:02]} 59. Re6 {[%emt 0:00:02]} Kg3 {[%emt 0:00:02]} 60. e5 {[%emt 0:00:03]} Kxh3 {[%emt 0:00:02]} 61. f6 {[%emt 0:00:03]} Kxg4 {[%emt 0:00:01]} 62. Re7 {[%emt 0:00:01]} Rf8 {[%emt 0:00:02]} 63. f7 {[%emt 0:00:03]} Kf5 {[%emt 0:00:03]} 64. e6 {[%emt 0:00:02]} g4 {[%emt 0:00:04]} 65. Re8 {[%emt 0:00:02]} Rxf7 {[%emt 0:00:05]} 66. exf7 {[%emt 0:00:03]} g3 {[%emt 0:00:02]} 67. f8=Q+ {[%emt 0:00:03]} Kg4 {[%emt 0:00:01]} 68. Re4+ {[%emt 0:00:02]} Kh3 {[%emt 0:00:02]} 69. Qf3 {[%emt 0:00:02]} Kh2 {[%emt 0:00:02]} 70. Rh4+ {[%emt 0:00:02]} Kg1 {[%emt 0:00:01]} 71. Rh1# {[%emt 0:00:02]} 1-0

[Event "Queens Festival Europe 2022"]
[Site "Tornelo"]
[Date "2022.06.19"]
[Round "2.2"]
[White "Andries, Leia"]
[Black "Bakhshizada, Asnad"]
[Result "0-1"]
[ECO "C00"]
[WhiteElo "1438"]
[BlackElo "1052"]
[Annotator "NA RC"]
[PlyCount "114"]
[EventDate "2022.06.19"]
[EventType "swiss"]
[EventCountry "NET"]
[SourceTitle "playchess.com"]
[Source "ChessBase"]
[SourceQuality "1"]
[TimeControl "180+2"]

1. e4 {[%emt 0:00:02]} e6 {[%emt 0:00:06]} 2. Nc3 {[%emt 0:00:03]} d5 {[%emt 0:00:01]} 3. Nf3 {[%emt 0:00:01]} d4 {[%emt 0:00:04]} 4. Ne2 {[%emt 0:00:03]} c5 {[%emt 0:00:03]} 5. c3 {[%emt 0:00:01]} dxc3 {[%emt 0:00:09]} 6. Nxc3 {[%emt 0:00:00]} Nf6 {[%emt 0:00:02]} 7. e5 {[%emt 0:00:06]} Nd5 {[%emt 0:00:03]} 8. d4 {[%emt 0:00:13]} cxd4 {[%emt 0:00:03]} 9. Qxd4 {[%emt 0:00:02]} Nc6 {[%emt 0:00:06]} 10. Bb5 {[%emt 0:00:09]} Bd7 {[%emt 0:00:07]} 11. Bxc6 {[%emt 0:00:02]} Bxc6 {[%emt 0:00:01]} 12. O-O {[%emt 0:00:03]} Be7 {[%emt 0:00:04]} 13. Be3 {[%emt 0:00:05]} O-O {[%emt 0:00:08]} 14. Nxd5 {[%emt 0:00:06]} Bxd5 {[%emt 0:00:03]} 15. Qg4 {[%emt 0:00:03]} Bxf3 {[%emt 0:00:09]} 16. Qxf3 {[%emt 0:00:02]} Bg5 {[%emt 0:00:07]} 17. Rfe1 {[%emt 0:00:13]} Bxe3 {[%emt 0:00:03]} 18. Rxe3 {[%emt 0:00:01]} Qb6 {[%emt 0:00:02]} 19. b3 {[%emt 0:00:04]} Rac8 {[%emt 0:00:03]} 20. Qg4 {[%emt 0:00:08]} Qc5 {[%emt 0:00:09]} 21. h3 {[%emt 0:00:11]} Rcd8 {[%emt 0:00:13]} 22. Rae1 {[%emt 0:00:09]} Qd4 {[%emt 0:00:03]} 23. Rg3 {[%emt 0:00:10]} Qxg4 {[%emt 0:00:03]} 24. Rxg4 {[%emt 0:00:01]} Rd2 {[%emt 0:00:02]} 25. a4 {[%emt 0:00:04]} h6 {[%emt 0:00:17]} 26. Re3 {[%emt 0:00:03]} Rc8 {[%emt 0:00:08]} 27. f4 {[%emt 0:00:16]} Rcc2 {[%emt 0:00:08]} 28. Reg3 {[%emt 0:00:03]} g6 {[%emt 0:00:04]} 29. h4 {[%emt 0:00:16]} h5 {[%emt 0:00:08]} 30. Rg5 {[%emt 0:00:03]} Kf8 {[%emt 0:00:04]} 31. Kh2 {[%emt 0:00:14]} Rd1 {[%emt 0:00:06]} 32. Rf3 {[%emt 0:00:13]} Rb2 {[%emt 0:00:13]} 33. Rgg3 {[%emt 0:00:04]} Rbb1 {[%emt 0:00:06]} 34. Rg5 {[%emt 0:00:05]} Rbc1 {[%emt 0:00:09]} 35. Re3 {[%emt 0:00:05]} Ke7 {[%emt 0:00:04]} 36. Rf3 {[%emt 0:00:04]} Kd7 {[%emt 0:00:07]} 37. Re3 {[%emt 0:00:17]} Kc6 {[%emt 0:00:02]} 38. Rf3 {[%emt 0:00:04]} Kc5 {[%emt 0:00:04]} 39. Re3 {[%emt 0:00:04]} Kb4 {[%emt 0:00:06]} 40. Kh3 {[%emt 0:00:10]} Rb1 {[%emt 0:00:11]} 41. Kg3 {[%emt 0:00:12]} Rxb3 {[%emt 0:00:04]} 42. Rxb3+ {[%emt 0:00:02]} Kxb3 {[%emt 0:00:01]} 43. a5 {[%emt 0:00:00]} Ra1 {[%emt 0:00:04]} 44. Kh2 {[%emt 0:00:02]} Rxa5 {[%emt 0:00:01]} 45. Rg3+ {[%emt 0:00:02]} Kc4 {[%emt 0:00:03]} 46. Rf3 {[%emt 0:00:01]} Kd4 {[%emt 0:00:01]} 47. Rf2 {[%emt 0:00:02]} b5 {[%emt 0:00:02]} 48. g3 {[%emt 0:00:01]} b4 {[%emt 0:00:01]} 49. Rb2 {[%emt 0:00:01]} Rb5 {[%emt 0:00:02]} 50. Kg2 {[%emt 0:00:02]} b3 {[%emt 0:00:01]} 51. Kf3 {[%emt 0:00:01]} Kc3 {[%emt 0:00:01]} 52. Rb1 {[%emt 0:00:02]} Kc2 {[%emt 0:00:01]} 53. Rf1 {[%emt 0:00:04]} b2 {[%emt 0:00:02]} 54. Rf2+ {[%emt 0:00:01]} Kc3 {[%emt 0:00:03]} 55. Ke4 {[%emt 0:00:04]} b1=Q+ {[%emt 0:00:05]} 56. Kf3 {[%emt 0:00:00]} Qd3+ {[%emt 0:00:01]} 57. Kg2 {[%emt 0:00:02]} Rb2 {[%emt 0:00:04]} 0-1